fUST/lending_fUST_20241123
["ID","MTS","AMOUNT","RATE_DAILY","PERIOD"]
[343107737,1732363773574,-500.0,0.00019452,2]
[343107738,1732363773602,-3677.49,0.00019452,2]
[343107739,1732363773629,-500.0,0.00019452,2]
[343107740,1732363773656,-500.0,0.00019452,2]
[343107741,1732363773684,-500.0,0.00019452,2]
[343107742,1732363773712,-500.0,0.00019452,2]
[343107743,1732363773742,-500.0,0.00019452,2]
[343107744,1732363773770,-953.29,0.00019452,2]
[343107745,1732363773798,-500.0,0.00019452,2]
[343107746,1732363773825,-2221.36,0.00019452,2]
[343107747,1732363773979,-500.0,0.00019452,2]
[343107748,1732363774012,-500.0,0.00019452,2]
[343107749,1732363774041,-2948.33,0.00019452,2]
[343107750,1732363774070,-1061.6,0.00019452,2]
[343107751,1732363774097,-220.4036313,0.00019452,2]
[343107752,1732363774124,-500.0,0.00019452,2]
[343107753,1732363774151,-434.4153162,0.00019452,2]
[343107754,1732363774180,-500.0,0.00019452,2]
[343107755,1732363774208,-500.0,0.00019452,2]
[343107756,1732363774237,-500.0,0.00019452,2]
[343107757,1732363774267,-500.0,0.00019452,2]
[343107758,1732363774295,-500.0,0.00019452,2]
[343107759,1732363774324,-500.0,0.00019452,2]
[343107760,1732363774353,-500.0,0.00019452,2]
[343107761,1732363774382,-587.96,0.00019452,2]
[343107762,1732363774412,-500.0,0.00019452,2]
[343107763,1732363774439,-500.0,0.00019452,2]
[343107764,1732363774465,-577.22849097,0.00019452,2]
[343107765,1732363774494,-500.0,0.00019452,2]
[343107766,1732363774522,-500.0,0.00019452,2]
[343107767,1732363774551,-500.0,0.00019452,2]
[343107768,1732363774578,-509.6255013,0.00019452,2]
[343107770,1732363774605,-500.0,0.00019452,2]
[343107771,1732363774632,-500.0,0.00019452,2]
[343107772,1732363774669,-500.0,0.00019452,2]
[343107773,1732363774703,-588.58,0.00019452,2]
[343107774,1732363774732,-500.0,0.00019452,2]
[343107775,1732363774763,-500.0,0.00019452,2]
[343107776,1732363774791,-500.0,0.00019452,2]
[343107777,1732363774818,-500.0,0.00019452,2]
[343107778,1732363774846,-500.0,0.00019452,2]
[343107779,1732363774874,-500.0,0.00019452,2]
[343107780,1732363774902,-500.0,0.00019452,2]
[343107781,1732363774929,-749.93,0.00019452,2]
[343107782,1732363774956,-500.0,0.00019452,2]
[343107783,1732363774987,-500.0,0.00019452,2]
[343107784,1732363775017,-500.0,0.00019452,2]
[343107785,1732363775046,-509.78463223,0.00019452,2]
[343107786,1732363775078,-500.0,0.00019452,2]
[343107787,1732363775107,-500.0,0.00019452,2]
[343107788,1732363775141,-2567.47,0.00019452,2]
[343107789,1732363775169,-500.0,0.00019452,2]
[343107790,1732363775199,-500.0,0.00019452,2]
[343107791,1732363775228,-500.0,0.00019452,2]
[343107792,1732363775258,-500.0,0.00019452,2]
[343107793,1732363775288,-500.0,0.00019452,2]
[343107794,1732363775318,-500.0,0.00019452,2]
[343107795,1732363775346,-500.0,0.00019452,2]
[343107796,1732363775374,-500.0,0.00019452,2]
[343107797,1732363775402,-500.0,0.00019452,2]
[343107798,1732363775430,-790.77,0.00019452,2]
[343107799,1732363775457,-1469.49,0.00019452,2]
[343107801,1732363775485,-742.26,0.00019452,2]
[343107802,1732363775515,-916.83,0.00019452,2]
[343107803,1732363775543,-500.0,0.00019452,2]
[343107804,1732363775572,-500.0,0.00019452,2]
[343107805,1732363775598,-1008.43,0.00019452,2]
[343107806,1732363775624,-500.0,0.00019452,2]
[343107807,1732363775650,-1754.95,0.00019452,2]
[343107808,1732363775677,-500.0,0.00019452,2]
[343107809,1732363775704,-500.0,0.00019452,2]
[343107810,1732363775734,-1328.13,0.00019452,2]
[343107811,1732363775763,-500.0,0.00019452,2]
[343107812,1732363775793,-500.0,0.00019452,2]
[343107813,1732363775969,-534.4803059,0.00019452,2]
[343107814,1732363776000,-500.0,0.00019452,2]
[343107815,1732363776031,-500.0,0.00019452,2]
[343107816,1732363776059,-500.0,0.00019452,2]
[343107817,1732363776088,-500.0,0.00019452,2]
[343107818,1732363776117,-500.0,0.00019452,2]
[343107819,1732363776144,-500.0,0.00019452,2]
[343107820,1732363776171,-500.0,0.00019452,2]
[343107821,1732363776202,-500.0,0.00019452,2]
[343107822,1732363776232,-2115.15,0.00019452,2]
[343107823,1732363776260,-500.0,0.00019452,2]
[343107824,1732363776288,-1264.18,0.00019452,2]
[343107825,1732363776316,-500.0,0.00019452,2]
[343107826,1732363776342,-1063.75,0.00019452,2]
[343107827,1732363776369,-500.0,0.00019452,2]
[343107828,1732363776394,-3000.43,0.00019452,2]
[343107829,1732363776420,-970.07,0.00019452,2]
[343107830,1732363776446,-500.0,0.00019452,2]
[343107831,1732363776473,-500.0,0.00019452,2]
[343107832,1732363776502,-500.0,0.00019452,2]
[343107833,1732363776530,-500.0,0.00019452,2]
[343107834,1732363776557,-1860.18,0.00019452,2]
[343107835,1732363776585,-1112.89,0.00019452,2]
[343107836,1732363776610,-500.0,0.00019452,2]
[343107837,1732363776638,-500.0,0.00019452,2]
[343107838,1732363776665,-500.0,0.00019452,2]
[343107839,1732363776692,-547.51145866,0.00019452,2]
[343107840,1732363776718,-500.0,0.00019452,2]
[343107841,1732363776746,-500.0,0.00019452,2]
[343107842,1732363776772,-1936.77,0.00019452,2]
[343107843,1732363776798,-500.0,0.00019452,2]
[343107844,1732363776824,-500.0,0.00019452,2]
[343107845,1732363776850,-500.0,0.00019452,2]
[343107846,1732363776875,-702.49,0.00019452,2]
[343107847,1732363776900,-500.0,0.00019452,2]
[343107848,1732363776926,-500.0,0.00019452,2]
[343107849,1732363776952,-912.88,0.00019452,2]
[343107850,1732363776980,-500.0,0.00019452,2]
[343107851,1732363777011,-212.66010855,0.00019452,2]
[343107852,1732363777036,-500.0,0.00019452,2]
[343107853,1732363777063,-500.0,0.00019452,2]
[343107854,1732363777091,-500.0,0.00019452,2]
[343107855,1732363777118,-1037.38,0.00019452,2]
[343107856,1732363777144,-500.0,0.00019452,2]
[343107857,1732363777170,-1495.76,0.00019452,2]
[343107858,1732363777196,-2803.62,0.00019452,2]
[343107859,1732363777222,-500.0,0.00019452,2]
[343107860,1732363777251,-500.0,0.00019452,2]
[343107861,1732363777277,-1765.88,0.00019452,2]
[343107862,1732363777304,-2345.51,0.00019452,2]
[343107863,1732363777331,-500.0,0.00019452,2]
[343107864,1732363777357,-1337.23,0.00019452,2]
[343107865,1732363777383,-500.0,0.00019452,2]
[343107866,1732363777411,-500.0,0.00019452,2]
[343107867,1732363777438,-3077.62,0.00019452,2]
[343107868,1732363777465,-1166.03,0.00019452,2]
[343107869,1732363777491,-500.0,0.00019452,2]
[343107870,1732363777522,-319.78779664,0.00019452,2]
[343107871,1732363777548,-511.96767638,0.00019452,2]
[343107872,1732363777575,-565.20435332,0.00019452,2]
[343107873,1732363777603,-500.0,0.00019452,2]
[343107874,1732363777631,-500.0,0.00019452,2]
[343107875,1732363777756,-196.21910349,0.00019452,2]
[343107876,1732363777785,-974.99,0.00019452,2]
[343107877,1732363777814,-861.9,0.00019452,2]
[343107878,1732363777842,-1189.97,0.00019452,2]
[343107879,1732363777868,-577.2,0.00019452,2]
[343107880,1732363777894,-318.27820319,0.00019452,2]
[343107881,1732363777920,-308.71503708,0.00019452,2]
[343107882,1732363777946,-1458.21,0.00019452,2]
[343107883,1732363777973,-500.0,0.00019452,2]
[343107884,1732363778003,-371.61913444,0.00019452,2]
[343107885,1732363778030,-500.0,0.00019452,2]
[343107886,1732363778063,-1532.1,0.00019452,2]
[343107887,1732363778093,-500.0,0.00019452,2]
[343107888,1732363778121,-500.0,0.00019452,2]
[343107889,1732363778149,-1013.64,0.00019452,2]
[343107890,1732363778176,-1862.24,0.00019452,2]
[343107891,1732363778204,-500.0,0.00019452,2]
[343107892,1732363778230,-500.0,0.00019452,2]
[343107893,1732363778261,-9026.67,0.00019452,2]
[343107894,1732363778287,-500.0,0.00019452,2]
[343107895,1732363778313,-2662.96,0.00019452,2]
[343107896,1732363778340,-500.0,0.00019452,2]
[343107897,1732363778366,-500.0,0.00019452,2]
[343107898,1732363778391,-1913.0,0.00019452,2]
[343107899,1732363778416,-500.0,0.00019452,2]
[343107900,1732363778442,-1506.09,0.00019452,2]
[343107901,1732363778467,-500.0,0.00019452,2]
[343107902,1732363778491,-500.0,0.00019452,2]
[343107903,1732363778518,-1121.28,0.00019452,2]
[343107904,1732363778544,-402.51541032,0.00019452,2]
[343107905,1732363778571,-623.68,0.00019452,2]
[343107906,1732363778597,-500.0,0.00019452,2]
[343107907,1732363778624,-1909.7,0.00019452,2]
[343107908,1732363778652,-389.88638531,0.00019452,2]
[343107909,1732363778679,-500.0,0.00019452,2]
[343107910,1732363778705,-656.98,0.00019452,2]
[343107911,1732363778732,-504.28393342,0.00019452,2]
[343107912,1732363778757,-500.0,0.00019452,2]
[343107913,1732363778783,-500.0,0.00019452,2]
[343107914,1732363778810,-500.0,0.00019452,2]
[343107915,1732363778836,-566.78631188,0.00019452,2]
[343107916,1732363778862,-500.0,0.00019452,2]
[343107917,1732363778887,-500.0,0.00019452,2]
[343107918,1732363778912,-1555.38,0.00019452,2]
[343107919,1732363778938,-565.37,0.00019452,2]
[343107920,1732363778963,-603.55,0.00019452,2]
[343107921,1732363778990,-500.0,0.00019452,2]
[343107922,1732363779021,-798.23,0.00019452,2]
[343107923,1732363779049,-500.0,0.00019452,2]
[343107924,1732363779078,-500.0,0.00019452,2]
[343107925,1732363779106,-500.0,0.00019452,2]
[343107926,1732363779134,-500.0,0.00019452,2]
[343107927,1732363779160,-500.0,0.00019452,2]
[343107928,1732363779186,-528.51,0.00019452,2]
[343107929,1732363779213,-839.02,0.00019452,2]
[343107930,1732363779242,-500.0,0.00019452,2]
[343107931,1732363779272,-500.0,0.00019452,2]
[343107932,1732363779302,-500.0,0.00019452,2]
[343107933,1732363779328,-500.0,0.00019452,2]
[343107934,1732363779458,-500.0,0.00019452,2]
[343107935,1732363779485,-500.0,0.00019452,2]
[343107937,1732363779511,-500.0,0.00019452,2]
[343107938,1732363779536,-500.0,0.00019452,2]
[343107939,1732363779562,-1075.91,0.00019452,2]
[343107941,1732363779587,-500.0,0.00019452,2]
[343107942,1732363779612,-500.0,0.00019452,2]
[343107943,1732363779640,-500.0,0.00019452,2]
[343107944,1732363779668,-535.9,0.00019452,2]
[343107945,1732363779696,-500.0,0.00019452,2]
[343107946,1732363779725,-817.22,0.00019452,2]
[343107947,1732363779756,-1151.72,0.00019452,2]
[343107948,1732363779783,-510.76779991,0.00019452,2]
[343107949,1732363779808,-500.0,0.00019452,2]
[343107950,1732363779833,-978.05,0.00019452,2]
[343107951,1732363779858,-504.11098242,0.00019452,2]
[343107952,1732363779882,-500.0,0.00019452,2]
[343107953,1732363779910,-500.0,0.00019452,2]
[343107954,1732363779936,-6942.67,0.00019452,2]
[343107955,1732363779963,-500.0,0.00019452,2]
[343107956,1732363779988,-953.96,0.00019452,2]
[343107957,1732363780018,-500.0,0.00019452,2]
[343107958,1732363780044,-500.0,0.00019452,2]
[343107959,1732363780071,-500.0,0.00019452,2]
[343107960,1732363780097,-500.0,0.00019452,2]
[343107961,1732363780123,-500.0,0.00019452,2]
[343107962,1732363780151,-500.0,0.00019452,2]
[343107963,1732363780188,-52463.48,0.00019452,2]
[343107964,1732363780217,-500.0,0.00019452,2]
[343107965,1732363780244,-500.0,0.00019452,2]
[343107966,1732363780272,-162.11549711,0.00019452,2]
[343107967,1732363780298,-500.0,0.00019452,2]
[343107968,1732363780324,-500.0,0.00019452,2]
[343107969,1732363780351,-500.0,0.00019452,2]
[343107970,1732363780377,-772.5,0.00019452,2]
[343107971,1732363780403,-500.0,0.00019452,2]
[343107972,1732363780430,-500.0,0.00019452,2]
[343107973,1732363780456,-500.0,0.00019452,2]
[343107974,1732363780480,-500.0,0.00019452,2]
[343107975,1732363780507,-500.0,0.00019452,2]
[343107976,1732363780533,-1910.73,0.00019452,2]
[343107977,1732363780559,-500.0,0.00019452,2]
[343107978,1732363780586,-1061.88,0.00019452,2]
[343107979,1732363780611,-367.97154436,0.00019452,2]
[343107980,1732363780637,-500.0,0.00019452,2]
[343107981,1732363780664,-4477.26,0.00019452,2]
[343107982,1732363780692,-909.52,0.00019452,2]
[343107983,1732363780717,-511.59704217,0.00019452,2]
[343107984,1732363780743,-1682.46,0.00019452,2]
[343107985,1732363780769,-820.13,0.00019452,2]
[343107986,1732363780794,-1013.63,0.00019452,2]
[343107987,1732363780819,-500.0,0.00019452,2]
[343107988,1732363780845,-500.0,0.00019452,2]
[343107989,1732363780870,-2690.84,0.00019452,2]
[343107990,1732363780896,-500.0,0.00019452,2]
[343107991,1732363780922,-2805.8,0.00019452,2]
[343107992,1732363780948,-500.0,0.00019452,2]
[343107993,1732363781082,-693.81,0.00019452,2]
[343107994,1732363781110,-500.0,0.00019452,2]
[343107995,1732363781139,-1206.73,0.00019452,2]
[343107996,1732363781165,-500.0,0.00019452,2]
[343107997,1732363781192,-718.66,0.00019452,2]
[343107998,1732363781219,-500.0,0.00019452,2]
[343107999,1732363781246,-6072.35,0.00019452,2]
[343108000,1732363781277,-3779.33,0.00019452,2]
[343108001,1732363781304,-500.0,0.00019452,2]
[343108002,1732363781331,-500.0,0.00019452,2]
[343108003,1732363781357,-500.0,0.00019452,2]
[343108004,1732363781381,-500.0,0.00019452,2]
[343108005,1732363781408,-500.0,0.00019452,2]
[343108006,1732363781434,-500.0,0.00019452,2]
[343108007,1732363781460,-500.0,0.00019452,2]
[343108008,1732363781485,-500.0,0.00019452,2]
[343108009,1732363781511,-500.0,0.00019452,2]
[343108010,1732363781536,-500.0,0.00019452,2]
[343108011,1732363781562,-250.0,0.00019452,2]
[343108012,1732363781589,-1172.77,0.00019452,2]
[343108013,1732363781616,-500.0,0.00019452,2]
[343108014,1732363781642,-500.0,0.00019452,2]
[343108015,1732363781671,-500.0,0.00019452,2]
[343108016,1732363781698,-500.0,0.00019452,2]
[343108017,1732363781724,-1095.66,0.00019452,2]
[343108018,1732363781753,-500.0,0.00019452,2]
[343108019,1732363781783,-500.0,0.00019452,2]
[343108020,1732363781813,-500.0,0.00019452,2]
[343108021,1732363781840,-500.0,0.00019452,2]
[343108022,1732363781866,-500.0,0.00019452,2]
[343108023,1732363781892,-500.0,0.00019452,2]
[343108024,1732363781918,-500.0,0.00019452,2]
[343108025,1732363781945,-1092.97,0.00019452,2]
[343108026,1732363781970,-504.79595291,0.00019452,2]
[343108027,1732363781996,-752.35,0.00019452,2]
[343108028,1732363782026,-500.0,0.00019452,2]
[343108029,1732363782053,-500.0,0.00019452,2]
[343108030,1732363782082,-1905.13,0.00019452,2]
[343108031,1732363782108,-500.0,0.00019452,2]
[343108032,1732363782135,-500.0,0.00019452,2]
[343108033,1732363782161,-938.66,0.00019452,2]
[343108034,1732363782187,-500.0,0.00019452,2]
[343108035,1732363782213,-500.0,0.00019452,2]
[343108036,1732363782241,-500.0,0.00019452,2]
[343108037,1732363782268,-500.0,0.00019452,2]
[343108038,1732363782293,-500.0,0.00019452,2]
[343108039,1732363782319,-539.92225662,0.00019452,2]
[343108040,1732363782345,-500.0,0.00019452,2]
[343108041,1732363782370,-500.0,0.00019452,2]
[343108042,1732363782395,-732.4,0.00019452,2]
[343108043,1732363782420,-500.0,0.00019452,2]
[343108044,1732363782445,-500.0,0.00019452,2]
[343108045,1732363782470,-500.0,0.00019452,2]
[343108046,1732363782495,-500.0,0.00019452,2]
[343108047,1732363782531,-500.0,0.00019452,2]
[343108048,1732363782657,-500.0,0.00019452,2]
[343108049,1732363782686,-501.9037935,0.00019452,2]
[343108050,1732363782712,-500.0,0.00019452,2]
[343108051,1732363782740,-500.0,0.00019452,2]
[343108052,1732363782767,-1065.5,0.00019452,2]
[343108053,1732363782796,-500.0,0.00019452,2]
[343108054,1732363782822,-500.0,0.00019452,2]
[343108055,1732363782847,-500.0,0.00019452,2]
[343108056,1732363782872,-500.0,0.00019452,2]
[343108057,1732363782897,-2062.38,0.00019452,2]
[343108058,1732363782922,-500.0,0.00019452,2]
[343108059,1732363782948,-500.0,0.00019452,2]
[343108060,1732363782973,-500.0,0.00019452,2]
[343108061,1732363783002,-500.0,0.00019452,2]
[343108062,1732363783029,-500.0,0.00019452,2]
[343108063,1732363783057,-22802.25,0.00019452,2]
[343108064,1732363783085,-842.43,0.00019452,2]
[343108065,1732363783112,-500.0,0.00019452,2]
[343108066,1732363783140,-500.0,0.00019452,2]
[343108067,1732363783166,-500.0,0.00019452,2]
[343108068,1732363783191,-2917.26,0.00019452,2]
[343108069,1732363783217,-12661.24,0.00019452,2]
[343108070,1732363783243,-500.0,0.00019452,2]
[343108071,1732363783269,-500.0,0.00019452,2]
[343108072,1732363783294,-500.0,0.00019452,2]
[343108073,1732363783319,-1609.55,0.00019452,2]
[343108074,1732363783345,-1335.26,0.00019452,2]
[343108075,1732363783371,-500.0,0.00019452,2]
[343108076,1732363783397,-6871.74,0.00019452,2]
[343108077,1732363783422,-1889.34,0.00019452,2]
[343108078,1732363783448,-1142.95,0.00019452,2]
[343108079,1732363783473,-500.0,0.00019473,2]
[343108080,1732363783499,-500.0,0.00019473,2]
[343108081,1732363783526,-500.0,0.00019473,2]
[343108082,1732363783552,-504.40584665,0.00019473,2]
[343108083,1732363783579,-321.1185576,0.00019473,2]
[343108084,1732363783603,-509.79179622,0.00019473,2]
[343108085,1732363783628,-14388.58598698,0.000195,2]
[343108086,1732363783654,-14388.58598695,0.000195,2]
[343108087,1732363783679,-14388.58598695,0.000195,2]
[343108088,1732363783705,-14388.58598695,0.000195,2]
[343108089,1732363783731,-201.2,0.00019553,2]
[343108090,1732363783757,-6048.32592421,0.00019591,2]
[343108091,1732363783783,-1500.0,0.0001965,2]
[343108092,1732363783810,-1000.0,0.00019721,2]
[343108093,1732363783835,-1000.0,0.00019721,2]
[343108094,1732363783863,-500.0,0.00019726,2]
[343108095,1732363783889,-500.0,0.00019726,2]
[343108096,1732363783914,-500.0,0.00019726,2]
[343108097,1732363783940,-154.9083629,0.00019726,2]
[343108098,1732363783966,-500.0,0.00019726,2]
[343108099,1732363783991,-500.0,0.00019726,2]
[343108100,1732363784023,-500.0,0.00019726,2]
[343108102,1732363784140,-500.0,0.00019726,2]
[343108103,1732363784171,-500.0,0.00019726,2]
[343108104,1732363784198,-500.0,0.00019726,2]
[343108105,1732363784224,-500.0,0.00019726,2]
[343108106,1732363784255,-500.0,0.00019726,2]
[343108107,1732363784282,-500.0,0.00019726,2]
[343108108,1732363784309,-530.41153225,0.00019726,2]
[343108109,1732363784336,-500.0,0.00019726,2]
[343108110,1732363784363,-580.25733749,0.00019726,2]
[343108111,1732363784391,-566.889712,0.00019726,2]
[343108112,1732363784418,-500.0,0.00019726,2]
[343108113,1732363784444,-500.0,0.00019726,2]
[343108114,1732363784470,-500.0,0.00019726,2]
[343108115,1732363784498,-500.0,0.00019726,2]
[343108116,1732363784527,-500.0,0.00019726,2]
[343108117,1732363784553,-500.0,0.00019726,2]
[343108118,1732363784579,-500.0,0.00019726,2]
[343108119,1732363784605,-804.92,0.00019726,2]
[343108120,1732363784633,-500.0,0.00019726,2]
[343108121,1732363784660,-500.0,0.00019726,2]
[343108122,1732363784685,-500.0,0.00019726,2]
[343108123,1732363784712,-500.0,0.00019726,2]
[343108124,1732363784741,-500.0,0.00019726,2]
[343108125,1732363784769,-500.0,0.00019726,2]
[343108126,1732363784795,-500.0,0.00019726,2]
[343108127,1732363784820,-500.0,0.00019726,2]
[343108128,1732363784859,-500.0,0.00019726,2]
[343108129,1732363784909,-1424.86,0.00019726,2]
[343108130,1732363784959,-500.0,0.00019726,2]
[343108131,1732363785008,-1952.93,0.00019726,2]
[343108132,1732363785063,-549.4,0.00019726,2]
[343108133,1732363785110,-500.0,0.00019726,2]
[343108134,1732363785151,-500.0,0.00019726,2]
[343108135,1732363785192,-500.0,0.00019726,2]
[343108136,1732363785233,-500.0,0.00019726,2]
[343108137,1732363785276,-500.0,0.00019726,2]
[343108138,1732363785316,-500.0,0.00019726,2]
[343108139,1732363785358,-500.0,0.00019726,2]
[343108140,1732363785400,-500.0,0.00019726,2]
[343108141,1732363785441,-500.0,0.00019726,2]
[343108142,1732363785481,-1177.73,0.00019726,2]
[343108143,1732363785521,-500.0,0.00019726,2]
[343108144,1732363785565,-184.82926731,0.00019726,2]
[343108145,1732363785607,-500.0,0.00019726,2]
[343108146,1732363785650,-500.0,0.00019726,2]
[343108147,1732363785694,-500.0,0.00019726,2]
[343108148,1732363785737,-1178.56,0.00019726,2]
[343108149,1732363785781,-500.0,0.00019726,2]
[343108150,1732363785824,-500.0,0.00019726,2]
[343108151,1732363785865,-541.78843322,0.00019726,2]
[343108152,1732363785909,-503.05940868,0.00019726,2]
[343108153,1732363786070,-500.0,0.00019726,2]
[343108154,1732363786102,-500.0,0.00019726,2]
[343108155,1732363786130,-500.0,0.00019726,2]
[343108156,1732363786161,-500.0,0.00019726,2]
[343108157,1732363786187,-500.0,0.00019726,2]
[343108158,1732363786212,-528.80661564,0.00019726,2]
[343108159,1732363786238,-500.0,0.00019726,2]
[343108160,1732363786265,-345.41486085,0.00019726,2]
[343108161,1732363786291,-500.0,0.00019726,2]
[343108162,1732363786316,-500.0,0.00019726,2]
[343108163,1732363786342,-500.0,0.00019726,2]
[343108164,1732363786368,-500.0,0.00019726,2]
[343108165,1732363786397,-503.59761867,0.00019726,2]
[343108166,1732363786423,-500.0,0.00019726,2]
[343108167,1732363786448,-816.47,0.00019726,2]
[343108168,1732363786475,-500.0,0.00019726,2]
[343108169,1732363786501,-500.0,0.00019726,2]
[343108170,1732363786532,-500.0,0.00019726,2]
[343108171,1732363786559,-531.08805615,0.00019726,2]
[343108172,1732363786586,-500.0,0.00019726,2]
[343108173,1732363786618,-548.33061508,0.00019726,2]
[343108174,1732363786644,-500.0,0.00019726,2]
[343108175,1732363786671,-500.0,0.00019726,2]
[343108176,1732363786699,-500.0,0.00019726,2]
[343108177,1732363786726,-500.0,0.00019726,2]
[343108178,1732363786754,-544.54244385,0.00019726,2]
[343108179,1732363786790,-500.0,0.00019726,2]
[343108180,1732363786818,-500.0,0.00019726,2]
[343108181,1732363786849,-500.0,0.00019726,2]
[343108182,1732363786876,-500.0,0.00019726,2]
[343108183,1732363786902,-500.0,0.00019726,2]
[343108184,1732363786929,-500.0,0.00019726,2]
[343108185,1732363786956,-500.0,0.00019726,2]
[343108186,1732363786984,-500.0,0.00019726,2]
[343108187,1732363787012,-543.81,0.00019726,2]
[343108188,1732363787039,-500.0,0.00019726,2]
[343108189,1732363787067,-500.0,0.00019726,2]
[343108190,1732363787098,-505.89545233,0.00019726,2]
[343108191,1732363787125,-500.0,0.00019726,2]
[343108192,1732363787154,-500.0,0.00019726,2]
[343108193,1732363787181,-500.0,0.00019726,2]
[343108194,1732363787209,-500.0,0.00019726,2]
[343108195,1732363787238,-502.38034097,0.00019726,2]
[343108196,1732363787267,-500.0,0.00019726,2]
[343108197,1732363787295,-504.08179281,0.00019726,2]
[343108198,1732363787324,-536.0845329,0.00019726,2]
[343108199,1732363787351,-500.0,0.00019726,2]
[343108200,1732363787379,-514.99235222,0.00019726,2]
[343108201,1732363787407,-500.0,0.00019726,2]
[343108202,1732363787437,-500.0,0.00019726,2]
[343108203,1732363787466,-500.0,0.00019726,2]
[343108204,1732363787492,-500.0,0.00019726,2]
[343108205,1732363787521,-500.0,0.00019726,2]
[343108206,1732363787548,-500.0,0.00019726,2]
[343108207,1732363787574,-2279.09,0.00019726,2]
[343108208,1732363787608,-818.1,0.00019726,2]
[343108209,1732363787707,-500.0,0.00019726,2]
[343108210,1732363787747,-553.68341967,0.00019726,2]
[343108211,1732363787777,-500.0,0.00019726,2]
[343108212,1732363787811,-500.0,0.00019726,2]
[343108213,1732363787839,-541.12194878,0.00019726,2]
[343108214,1732363787866,-1477.59,0.00019726,2]
[343108216,1732363787899,-500.0,0.00019726,2]
[343108217,1732363787927,-500.0,0.00019726,2]
[343108218,1732363787953,-500.0,0.00019726,2]
[343108219,1732363787979,-537.52743861,0.00019726,2]
[343108220,1732363788013,-500.0,0.00019726,2]
[343108221,1732363788042,-500.0,0.00019726,2]
[343108222,1732363788071,-3389.13,0.00019726,2]
[343108223,1732363788100,-500.0,0.00019726,2]
[343108224,1732363788130,-500.0,0.00019726,2]
[343108225,1732363788159,-500.0,0.00019726,2]
[343108226,1732363788190,-2266.58,0.00019726,2]
[343108227,1732363788219,-510.44731251,0.00019726,2]
[343108228,1732363788248,-500.0,0.00019726,2]
[343108229,1732363788278,-500.0,0.00019726,2]
[343108230,1732363788307,-500.0,0.00019726,2]
[343108231,1732363788339,-500.0,0.00019726,2]
[343108232,1732363788373,-500.0,0.00019726,2]
[343108233,1732363788406,-500.0,0.00019726,2]
[343108234,1732363788440,-500.0,0.00019726,2]
[343108235,1732363788474,-519.49857152,0.00019726,2]
[343108236,1732363788506,-500.0,0.00019726,2]
[343108237,1732363788543,-500.0,0.00019726,2]
[343108238,1732363788574,-500.0,0.00019726,2]
[343108239,1732363788603,-1440.12,0.00019726,2]
[343108240,1732363788633,-519.16944551,0.00019726,2]
[343108241,1732363788661,-516.68703625,0.00019726,2]
[343108242,1732363788689,-500.0,0.00019726,2]